fUSD/lending_fUSD_20250209
["ID","MTS","AMOUNT","RATE_DAILY","PERIOD"]
[352438662,1739107872579,-997.12,0.00011305,2]
[352438663,1739107872590,-862.14,0.00011305,2]
[352438664,1739107872600,-500.0,0.00011305,2]
[352438665,1739107872610,-536.42,0.00011305,2]
[352438666,1739107872621,-500.0,0.00011305,2]
[352438667,1739107872631,-540.78,0.00011305,2]
[352438668,1739107872642,-1290.99,0.00011305,2]
[352438669,1739107872651,-905.18,0.00011305,2]
[352438670,1739107872661,-2008.31,0.00011305,2]
[352438671,1739107872671,-941.54,0.00011305,2]
[352438672,1739107872682,-500.0,0.00011305,2]
[352438673,1739107872692,-999.5,0.00011305,2]
[352438674,1739107872702,-335.86,0.00011305,2]
[352438675,1739107872712,-500.0,0.00011305,2]
[352438676,1739107872724,-1002.42,0.00011305,2]
[352438677,1739107872735,-500.0,0.00011305,2]
[352438678,1739107872746,-1130.57,0.00011305,2]
[352438679,1739107872756,-803.87,0.00011305,2]
[352438680,1739107872766,-500.0,0.00011305,2]
[352438681,1739107872777,-750.13,0.00011305,2]
[352438682,1739107872790,-500.0,0.00011305,2]
[352438683,1739107872800,-1309.04,0.00011305,2]
[352438684,1739107872810,-500.0,0.00011305,2]
[352438685,1739107872820,-550.74,0.00011305,2]
[352438686,1739107872830,-998.43,0.00011305,2]
[352438687,1739107872840,-602.27,0.00011305,2]
[352438688,1739107872850,-500.0,0.00011305,2]
[352438689,1739107872860,-585.34,0.00011305,2]
[352438690,1739107872870,-500.0,0.00011305,2]
[352438691,1739107872880,-295.97,0.00011305,2]
[352438692,1739107872890,-500.0,0.00011305,2]
[352438693,1739107872899,-500.0,0.00011305,2]
[352438694,1739107872909,-500.0,0.00011305,2]
[352438695,1739107872919,-531.22,0.00011305,2]
[352438696,1739107872929,-500.0,0.00011305,2]
[352438697,1739107872939,-500.0,0.00011305,2]
[352438698,1739107872949,-500.0,0.00011305,2]
[352438699,1739107872958,-500.0,0.00011305,2]
[352438700,1739107872968,-1046.48,0.00011305,2]
[352438701,1739107872979,-906.83,0.00011305,2]
[352438702,1739107872988,-500.0,0.00011305,2]
[352438703,1739107872998,-500.0,0.00011305,2]
[352438704,1739107873009,-500.0,0.00011306,2]
[352438705,1739107873019,-500.0,0.00011306,2]
[352438706,1739107873030,-500.0,0.00011306,2]
[352438707,1739107873043,-500.0,0.00011306,2]
[352438708,1739107873054,-500.0,0.00011306,2]
[352438709,1739107873063,-500.0,0.00011306,2]
[352438710,1739107873074,-500.0,0.00011306,2]
[352438711,1739107873084,-500.0,0.00011306,2]
[352438712,1739107873094,-500.0,0.00011306,2]
[352438713,1739107873104,-500.0,0.00011306,2]
[352438714,1739107873114,-500.0,0.00011306,2]
[352438715,1739107873124,-500.0,0.00011306,2]
[352438716,1739107873134,-501.82,0.00011306,2]
[352438717,1739107873144,-500.0,0.00011306,2]
[352438718,1739107873154,-500.0,0.00011306,2]
[352438719,1739107873163,-541.29,0.00011306,2]
[352438720,1739107873174,-500.0,0.00011306,2]
[352438721,1739107873184,-500.0,0.00011306,2]
[352438722,1739107873195,-701.75,0.00011306,2]
[352438723,1739107873205,-500.0,0.00011306,2]
[352438724,1739107873216,-500.0,0.00011306,2]
[352438725,1739107873226,-500.0,0.00011306,2]
[352438726,1739107873237,-500.0,0.00011306,2]
[352438727,1739107873250,-554.16,0.00011306,2]
[352438728,1739107873261,-500.0,0.00011306,2]
[352438729,1739107873271,-500.0,0.00011306,2]
[352438730,1739107873281,-500.0,0.00011306,2]
[352438731,1739107873295,-500.0,0.00011306,2]
[352438732,1739107873306,-500.0,0.00011306,2]
[352438733,1739107873316,-1995.06,0.00011306,2]
[352438734,1739107873326,-250.26,0.00011306,2]
[352438735,1739107873336,-500.0,0.00011306,2]
[352438736,1739107873347,-508.51,0.00011306,2]
[352438737,1739107873359,-190.77598507,0.00011306,2]
[352438738,1739107873369,-500.0,0.00011306,2]
[352438739,1739107873379,-566.95,0.00011306,2]
[352438740,1739107873389,-500.0,0.00011306,2]
[352438741,1739107873399,-500.0,0.00011306,2]
[352438742,1739107873409,-500.0,0.00011306,2]
[352438743,1739107873419,-775.06,0.00011306,2]
[352438744,1739107873429,-516.17,0.00011306,2]
[352438745,1739107873440,-586.08,0.00011306,2]
[352438746,1739107873452,-576.02,0.00011306,2]
[352438747,1739107873680,-500.0,0.00011306,2]
[352438748,1739107873690,-500.0,0.00011306,2]
[352438749,1739107873700,-573.59,0.00011306,2]
[352438750,1739107873709,-500.0,0.00011306,2]
[352438751,1739107873719,-548.12,0.00011306,2]
[352438752,1739107873728,-500.0,0.00011306,2]
[352438753,1739107873738,-500.0,0.00011306,2]
[352438754,1739107873747,-500.0,0.00011306,2]
[352438755,1739107873756,-727.19,0.00011306,2]
[352438756,1739107873765,-500.0,0.00011306,2]
[352438757,1739107873775,-620.23,0.00011306,2]
[352438758,1739107873786,-543.97,0.00011306,2]
[352438759,1739107873796,-573.79,0.00011306,2]
[352438760,1739107873811,-500.0,0.00011306,2]
[352438761,1739107873821,-500.0,0.00011306,2]
[352438762,1739107873830,-638.01,0.00011306,2]
[352438763,1739107873840,-601.24,0.00011306,2]
[352438764,1739107873849,-500.0,0.00011306,2]
[352438765,1739107873859,-500.0,0.00011306,2]
[352438766,1739107873869,-704.82,0.00011306,2]
[352438767,1739107873878,-500.0,0.00011306,2]
[352438768,1739107873888,-603.16,0.00011306,2]
[352438769,1739107873897,-731.45,0.00011306,2]
[352438770,1739107873906,-500.0,0.00011306,2]
[352438771,1739107873916,-730.12,0.00011306,2]
[352438772,1739107873927,-708.33,0.00011306,2]
[352438773,1739107873936,-500.0,0.00011306,2]
[352438774,1739107873946,-787.33,0.00011306,2]
[352438775,1739107873957,-563.98,0.00011306,2]
[352438776,1739107873966,-1390.78,0.00011306,2]
[352438777,1739107873976,-500.0,0.00011306,2]
[352438778,1739107873986,-500.0,0.00011306,2]
[352438779,1739107873995,-698.39,0.00011306,2]
[352438780,1739107874005,-500.0,0.00011306,2]
[352438781,1739107874014,-1393.85,0.00011306,2]
[352438782,1739107874024,-514.6,0.00011306,2]
[352438783,1739107874036,-936.4,0.00011306,2]
[352438784,1739107874046,-1378.75,0.00011306,2]
[352438785,1739107874056,-1334.52,0.00011306,2]
[352438786,1739107874065,-500.0,0.00011306,2]
[352438787,1739107874075,-500.0,0.00011306,2]
[352438788,1739107874084,-500.0,0.00011306,2]
[352438789,1739107874094,-1314.92,0.00011306,2]
[352438790,1739107874104,-949.47,0.00011306,2]
[352438791,1739107874114,-977.97,0.00011306,2]
[352438792,1739107874123,-560.88,0.00011306,2]
[352438793,1739107874133,-500.0,0.00011306,2]
[352438794,1739107874142,-500.0,0.00011306,2]
[352438795,1739107874152,-769.7,0.00011306,2]
[352438796,1739107874161,-731.74,0.00011306,2]
[352438797,1739107874171,-755.71,0.00011306,2]
[352438798,1739107874181,-500.0,0.00011306,2]
[352438799,1739107874190,-672.89,0.00011306,2]
[352438800,1739107874200,-500.0,0.00011306,2]
[352438801,1739107874210,-500.0,0.00011306,2]
[352438802,1739107874220,-789.01,0.00011306,2]
[352438803,1739107874230,-538.17,0.00011306,2]
[352438804,1739107874239,-703.45,0.00011306,2]
[352438805,1739107874252,-500.0,0.00011306,2]
[352438806,1739107874261,-500.0,0.00011306,2]
[352438807,1739107874271,-500.0,0.00011306,2]
[352438808,1739107874282,-500.0,0.00011306,2]
[352438809,1739107874295,-1016.08,0.00011306,2]
[352438810,1739107874305,-576.55,0.00011306,2]
[352438811,1739107874314,-705.29,0.00011306,2]
[352438812,1739107874325,-766.53,0.00011306,2]
[352438813,1739107874335,-370.97,0.00011306,2]
[352438814,1739107874345,-500.0,0.00011307,2]
[352438815,1739107874354,-500.0,0.00011307,2]
[352438816,1739107874364,-642.01,0.00011307,2]
[352438817,1739107874375,-539.72,0.00011307,2]
[352438818,1739107874385,-500.0,0.00011307,2]
[352438819,1739107874394,-500.0,0.00011307,2]
[352438820,1739107874404,-150.0,0.00011315,2]
[352438821,1739107874414,-150.0,0.00011337,2]
[352438822,1739107874424,-1351.82830865,0.00011342,2]
[352438823,1739107874433,-366.15524571,0.00011343,2]
[352438824,1739107874443,-657.54455837,0.00011343,2]
[352438825,1739107874454,-150.0,0.0001138,2]
[352438826,1739107874463,-150.0,0.00011382,2]
[352438827,1739107874473,-1351.82830865,0.00011397,2]
[352438828,1739107874483,-150.0,0.00011407,2]
[352438829,1739107874493,-945.4,0.0001142,2]
[352438830,1739107874503,-1196.06,0.0001142,2]
[352438831,1739107874513,-1411.24,0.0001142,2]
[352438832,1739107874523,-1704.82,0.0001142,2]
[352438833,1739107874533,-921.89,0.0001142,2]
[352438834,1739107874546,-761.62,0.0001142,2]
[352438835,1739107874555,-809.89,0.0001142,2]
[352438836,1739107874565,-1085.47,0.0001142,2]
[352438837,1739107874575,-500.0,0.0001142,2]
[352438838,1739107874585,-869.28,0.0001142,2]
[352438839,1739107874595,-1125.97,0.0001142,2]
[352438840,1739107874604,-1069.98,0.0001142,2]
[352438841,1739107874614,-1000.0,0.0001142,2]
[352438842,1739107874624,-1075.57,0.0001142,2]
[352438843,1739107874634,-297.27,0.0001142,2]
[352438844,1739107874643,-869.7,0.0001142,2]
[352438845,1739107874653,-1080.69,0.0001142,2]
[352438846,1739107874663,-574.37,0.00011436,2]
[352438847,1739107874672,-594.17,0.00011436,2]
[352438848,1739107874681,-500.0,0.00011436,2]
[352438849,1739107874690,-500.0,0.00011436,2]
[352438850,1739107874700,-500.0,0.00011436,2]
[352438851,1739107874709,-500.0,0.00011436,2]
[352438852,1739107874719,-500.0,0.00011436,2]
[352438853,1739107874729,-505.84,0.00011436,2]
[352438854,1739107874739,-579.83,0.00011436,2]
[352438855,1739107874749,-500.0,0.00011436,2]
[352438856,1739107874758,-652.14,0.00011436,2]
[352438857,1739107874768,-500.0,0.00011436,2]
[352438858,1739107874778,-500.0,0.00011436,2]
[352438859,1739107874789,-500.0,0.00011436,2]
[352438860,1739107874799,-500.0,0.00011436,2]
[352438861,1739107874808,-500.0,0.00011436,2]
[352438862,1739107874818,-500.0,0.00011436,2]
[352438863,1739107874827,-527.38,0.00011436,2]
[352438864,1739107874837,-500.0,0.00011436,2]
[352438865,1739107874846,-655.75,0.00011436,2]
[352438866,1739107874856,-787.42,0.00011436,2]
[352438867,1739107874865,-810.3,0.00011436,2]
[352438868,1739107874875,-500.0,0.00011436,2]
[352438869,1739107874884,-500.0,0.00011436,2]
[352438870,1739107874894,-500.0,0.00011436,2]
[352438871,1739107874903,-500.0,0.00011436,2]
[352438872,1739107874914,-500.0,0.00011436,2]
[352438873,1739107874924,-860.15,0.00011436,2]
[352438874,1739107874934,-556.55,0.00011436,2]
[352438875,1739107874943,-500.0,0.00011436,2]
[352438876,1739107874953,-597.29,0.00011436,2]
[352438877,1739107874962,-1061.93,0.00011436,2]
[352438878,1739107874972,-500.0,0.00011436,2]
[352438879,1739107874982,-500.0,0.00011436,2]
[352438880,1739107874991,-594.83,0.00011436,2]
[352438881,1739107875001,-500.0,0.00011436,2]
[352438882,1739107875011,-500.0,0.00011436,2]
[352438883,1739107875021,-500.0,0.00011436,2]
[352438884,1739107875031,-500.0,0.00011436,2]
[352438885,1739107875042,-358.82,0.00011436,2]
[352438886,1739107875051,-297.5,0.00011436,2]
[352438887,1739107875062,-500.0,0.00011436,2]
[352438888,1739107875071,-200.48,0.00011436,2]
[352438889,1739107875081,-500.0,0.00011436,2]
[352438890,1739107875090,-500.0,0.00011436,2]
[352438891,1739107875099,-500.0,0.00011436,2]
[352438892,1739107875109,-509.2,0.00011436,2]
[352438893,1739107875119,-500.0,0.00011436,2]
[352438894,1739107875129,-182.15,0.00011436,2]
[352438895,1739107875140,-500.0,0.00011442,2]
[352438896,1739107875150,-500.0,0.00011442,2]
[352438897,1739107875159,-500.0,0.00011442,2]
[352438898,1739107875168,-500.0,0.00011442,2]
[352438899,1739107875178,-501.56638438,0.00011442,2]
[352438900,1739107875188,-500.0,0.00011442,2]
[352438901,1739107875197,-500.0,0.00011442,2]
[352438902,1739107875207,-500.0,0.00011442,2]
[352438903,1739107875216,-500.0,0.00011442,2]
[352438904,1739107875225,-500.0,0.00011442,2]
[352438905,1739107875235,-500.0,0.00011442,2]
[352438906,1739107875245,-269.93806515,0.00011442,2]
[352438907,1739107875257,-500.0,0.00011442,2]
[352438908,1739107875266,-500.0,0.00011442,2]
[352438909,1739107875275,-500.0,0.00011442,2]
[352438910,1739107875286,-180.10873903,0.00011442,2]
[352438911,1739107875296,-500.0,0.00011442,2]
[352438912,1739107875306,-500.0,0.00011442,2]
[352438913,1739107875315,-500.0,0.00011442,2]
[352438914,1739107875325,-501.29771038,0.00011442,2]
[352438915,1739107875335,-470.25,0.00011442,2]
[352438916,1739107875344,-500.0,0.00011442,2]
[352438917,1739107875354,-500.0,0.00011442,2]
[352438918,1739107875363,-500.0,0.00011442,2]
[352438919,1739107875373,-500.0,0.00011442,2]
[352438920,1739107875382,-500.0,0.00011442,2]
[352438921,1739107875392,-500.0,0.00011442,2]
[352438922,1739107875401,-381.17,0.00011442,2]
[352438923,1739107875411,-568.21489234,0.00011442,2]
[352438924,1739107875420,-500.0,0.00011442,2]
[352438925,1739107875430,-550.8,0.00011442,2]
[352438926,1739107875439,-575.98,0.00011442,2]
[352438927,1739107875448,-869.24,0.00011442,2]
[352438928,1739107875457,-917.81,0.00011442,2]
[352438929,1739107875466,-1316.46,0.00011442,2]
[352438930,1739107875480,-620.420557,0.00011442,2]
[352438931,1739107875490,-643.61,0.00011442,2]
[352438932,1739107875500,-622.5,0.00011442,2]
[352438933,1739107875510,-500.0,0.00011442,2]
[352438934,1739107875520,-500.0,0.00011442,2]
[352438935,1739107875531,-712.57,0.00011442,2]
[352438936,1739107875545,-749.43,0.00011442,2]
[352438937,1739107875555,-500.0,0.00011442,2]
[352438938,1739107875564,-504.51,0.00011442,2]
[352438939,1739107875573,-612.163729,0.00011442,2]
[352438940,1739107875582,-500.0,0.00011442,2]
[352438941,1739107875591,-773.52,0.00011442,2]
[352438942,1739107875600,-1582.01,0.00011442,2]
[352438943,1739107875609,-500.0,0.00011442,2]
[352438944,1739107875619,-1233.21,0.00011442,2]
[352438945,1739107875629,-655.54,0.00011442,2]
[352438946,1739107875638,-979.19,0.00011442,2]
[352438947,1739107875647,-551.62,0.00011442,2]
[352438948,1739107875656,-697.89,0.00011442,2]
[352438949,1739107875665,-917.86,0.00011442,2]
[352438950,1739107875675,-772.07,0.00011442,2]
[352438951,1739107875684,-2450.21,0.00011442,2]
[352438952,1739107875693,-517.95,0.00011442,2]
[352438953,1739107875703,-1029.57,0.00011442,2]
[352438954,1739107875712,-803.93,0.00011442,2]
[352438955,1739107875721,-500.0,0.00011442,2]
[352438956,1739107875731,-500.0,0.00011442,2]
[352438957,1739107875741,-823.01,0.00011442,2]
[352438958,1739107875751,-1007.33,0.00011442,2]
[352438959,1739107875761,-500.0,0.00011442,2]
[352438960,1739107875771,-809.98,0.00011442,2]
[352438961,1739107875781,-817.22,0.00011442,2]
[352438962,1739107875793,-997.12,0.00011442,2]
[352438963,1739107875803,-862.14,0.00011442,2]
[352438964,1739107875812,-536.42,0.00011442,2]
[352438965,1739107875822,-540.78,0.00011442,2]
[352438966,1739107875832,-1290.99,0.00011442,2]
[352438967,1739107875842,-905.18,0.00011442,2]
[352438968,1739107875851,-2008.31,0.00011442,2]
[352438969,1739107875861,-941.54,0.00011442,2]
[352438970,1739107875871,-999.5,0.00011442,2]
[352438971,1739107875880,-1002.42,0.00011442,2]
[352438972,1739107875890,-1130.57,0.00011442,2]
[352438973,1739107875900,-803.87,0.00011442,2]
[352438974,1739107875910,-750.13,0.00011442,2]
[352438975,1739107875919,-1309.04,0.00011442,2]
[352438976,1739107875930,-500.0,0.00011442,2]
[352438977,1739107875939,-550.74,0.00011442,2]
[352438978,1739107875948,-998.43,0.00011442,2]
[352438979,1739107875958,-602.27,0.00011442,2]
[352438980,1739107875967,-500.0,0.00011442,2]
[352438981,1739107875977,-585.34,0.00011442,2]
[352438982,1739107875986,-500.0,0.00011442,2]
[352438983,1739107876052,-500.0,0.00011442,2]
[352438984,1739107876063,-500.0,0.00011442,2]
[352438985,1739107876072,-531.22,0.00011442,2]
[352438986,1739107876081,-369.14840359,0.00011442,2]
[352438987,1739107876091,-500.0,0.00011442,2]
[352438988,1739107876101,-1046.48,0.00011442,2]
[352438989,1739107876110,-906.83,0.00011442,2]
[352438990,1739107876119,-500.0,0.00011442,2]
[352438991,1739107876128,-500.0,0.00011442,2]
[352438992,1739107876138,-500.0,0.00011443,2]
[352438993,1739107876147,-500.0,0.00011443,2]
[352438994,1739107876156,-500.0,0.00011443,2]
[352438995,1739107876166,-500.0,0.00011443,2]
[352438996,1739107876175,-500.0,0.00011443,2]
[352438997,1739107876185,-500.0,0.00011443,2]
[352438998,1739107876194,-500.0,0.00011443,2]
[352438999,1739107876204,-500.0,0.00011443,2]
[352439000,1739107876213,-500.0,0.00011443,2]
[352439001,1739107876223,-500.0,0.00011443,2]
[352439002,1739107876232,-500.0,0.00011443,2]
[352439003,1739107876243,-500.0,0.00011443,2]
[352439004,1739107876254,-501.82,0.00011443,2]
[352439005,1739107876264,-500.0,0.00011443,2]
[352439006,1739107876274,-500.0,0.00011443,2]
[352439007,1739107876289,-541.29,0.00011443,2]
[352439008,1739107876299,-500.0,0.00011443,2]
[352439009,1739107876309,-500.0,0.00011443,2]
[352439010,1739107876319,-701.75,0.00011443,2]
[352439011,1739107876328,-500.0,0.00011443,2]
[352439012,1739107876338,-500.0,0.00011443,2]
[352439013,1739107876348,-500.0,0.00011443,2]
[352439014,1739107876359,-554.16,0.00011443,2]
[352439015,1739107876368,-500.0,0.00011443,2]
[352439016,1739107876378,-500.0,0.00011443,2]
[352439017,1739107876388,-500.0,0.00011443,2]
[352439018,1739107876398,-500.0,0.00011443,2]
[352439019,1739107876408,-500.0,0.00011443,2]
[352439020,1739107876419,-500.0,0.00011443,2]
[352439021,1739107876428,-508.51,0.00011443,2]
[352439022,1739107876437,-500.0,0.00011443,2]
[352439023,1739107876447,-566.95,0.00011443,2]
[352439024,1739107876456,-500.0,0.00011443,2]
[352439025,1739107876466,-479.55,0.00011443,2]
[352439026,1739107876475,-500.0,0.00011443,2]
[352439027,1739107876485,-775.06,0.00011443,2]
[352439028,1739107876494,-516.17,0.00011443,2]
[352439029,1739107876504,-576.02,0.00011443,2]
[352439030,1739107876514,-500.0,0.00011443,2]
[352439031,1739107876524,-500.0,0.00011443,2]
[352439032,1739107876533,-573.59,0.00011443,2]
[352439033,1739107876546,-500.0,0.00011443,2]
[352439034,1739107876555,-500.0,0.00011443,2]
[352439035,1739107876564,-500.0,0.00011443,2]
[352439036,1739107876573,-727.19,0.00011443,2]
[352439037,1739107876583,-500.0,0.00011443,2]
[352439038,1739107876593,-620.23,0.00011443,2]
[352439039,1739107876603,-543.97,0.00011443,2]
[352439040,1739107876612,-573.79,0.00011443,2]
[352439041,1739107876621,-500.0,0.00011443,2]
[352439042,1739107876630,-500.0,0.00011443,2]
[352439043,1739107876640,-638.01,0.00011443,2]
[352439044,1739107876650,-601.24,0.00011443,2]
[352439045,1739107876659,-500.0,0.00011443,2]
[352439046,1739107876668,-500.0,0.00011443,2]
[352439047,1739107876678,-704.82,0.00011443,2]
[352439048,1739107876687,-500.0,0.00011443,2]
[352439049,1739107876696,-603.16,0.00011443,2]
[352439050,1739107876707,-731.45,0.00011443,2]
[352439051,1739107876717,-500.0,0.00011443,2]
[352439052,1739107876726,-730.12,0.00011443,2]
[352439053,1739107876735,-708.33,0.00011443,2]
[352439054,1739107876745,-500.0,0.00011443,2]
[352439055,1739107876755,-787.33,0.00011443,2]
[352439056,1739107876765,-563.98,0.00011443,2]
[352439057,1739107876774,-1390.78,0.00011443,2]
[352439058,1739107876783,-500.0,0.00011443,2]
[352439059,1739107876794,-500.0,0.00011443,2]
[352439060,1739107876803,-698.39,0.00011443,2]
[352439061,1739107876812,-500.0,0.00011443,2]
[352439062,1739107876822,-1393.85,0.00011443,2]
[352439063,1739107876831,-514.6,0.00011443,2]
[352439064,1739107876841,-936.4,0.00011443,2]
[352439065,1739107876850,-1378.75,0.00011443,2]
[352439066,1739107876859,-1334.52,0.00011443,2]
[352439067,1739107876869,-500.0,0.00011443,2]
[352439068,1739107876878,-500.0,0.00011443,2]
[352439069,1739107876888,-500.0,0.00011443,2]
[352439070,1739107876897,-1314.92,0.00011443,2]
[352439071,1739107876906,-949.47,0.00011443,2]
[352439072,1739107876915,-977.97,0.00011443,2]
[352439073,1739107876925,-560.88,0.00011443,2]
[352439074,1739107876934,-369.03,0.00011443,2]
[352439075,1739107876943,-500.0,0.00011443,2]
[352439076,1739107876953,-769.7,0.00011443,2]
[352439077,1739107876962,-731.74,0.00011443,2]
[352439078,1739107876971,-755.71,0.00011443,2]
[352439079,1739107876981,-500.0,0.00011443,2]
[352439080,1739107876990,-672.89,0.00011443,2]
[352439081,1739107877000,-500.0,0.00011443,2]
[352439082,1739107877009,-500.0,0.00011443,2]
[352439083,1739107877019,-789.01,0.00011443,2]
[352439084,1739107877028,-538.17,0.00011443,2]
[352439085,1739107877039,-703.45,0.00011443,2]
[352439086,1739107877048,-500.0,0.00011443,2]
[352439087,1739107877058,-500.0,0.00011443,2]
[352439088,1739107877067,-500.0,0.00011443,2]
[352439089,1739107877076,-500.0,0.00011443,2]
[352439090,1739107877085,-1016.08,0.00011443,2]
[352439091,1739107877094,-576.55,0.00011443,2]
[352439092,1739107877103,-705.29,0.00011443,2]
[352439093,1739107877112,-766.53,0.00011443,2]
[352439094,1739107877121,-500.0,0.00011444,2]
[352439095,1739107877131,-500.0,0.00011444,2]
[352439096,1739107877140,-1995.06,0.00011444,2]
[352439097,1739107877149,-642.01,0.00011444,2]
[352439098,1739107877158,-539.72,0.00011444,2]
[352439099,1739107877167,-500.0,0.00011444,2]
[352439100,1739107877176,-500.0,0.00011444,2]
[352439101,1739107877186,-1351.82830865,0.00011452,2]
[352439102,1739107877195,-366.15524571,0.0001148,2]
[352439103,1739107877204,-657.54455837,0.0001148,2]
[352439104,1739107877214,-2751.0,0.00011507,2]
[352439105,1739107877223,-1351.82830865,0.00011507,2]
[352439106,1739107877232,-1351.82830865,0.00011534,2]
[352439107,1739107877241,-8500.0,0.00011545,2]
[352439108,1739107877252,-945.4,0.00011557,2]
[352439109,1739107877262,-1196.06,0.00011557,2]
[352439110,1739107877271,-1411.24,0.00011557,2]
[352439111,1739107877283,-1704.82,0.00011557,2]
[352439112,1739107877295,-921.89,0.00011557,2]
[352439113,1739107877304,-761.62,0.00011557,2]
[352439114,1739107877314,-809.89,0.00011557,2]
[352439115,1739107877323,-1085.47,0.00011557,2]
[352439116,1739107877332,-500.0,0.00011557,2]
[352439117,1739107877342,-869.28,0.00011557,2]
[352439118,1739107877351,-1125.97,0.00011557,2]
[352439119,1739107877361,-1069.98,0.00011557,2]
[352439120,1739107877371,-1000.0,0.00011557,2]
[352439121,1739107877380,-1075.57,0.00011557,2]
[352439122,1739107877390,-869.7,0.00011557,2]
[352439123,1739107877399,-1080.69,0.00011557,2]
[352439124,1739107877409,-2003.91705439,0.00011558,2]
[352439125,1739107877418,-574.37,0.00011573,2]
[352439126,1739107877428,-594.17,0.00011573,2]
[352439127,1739107877437,-500.0,0.00011573,2]
[352439128,1739107877447,-500.0,0.00011573,2]
[352439129,1739107877457,-500.0,0.00011573,2]
[352439130,1739107877467,-500.0,0.00011573,2]
[352439131,1739107877477,-500.0,0.00011573,2]
[352439132,1739107877487,-505.84,0.00011573,2]
[352439133,1739107877496,-579.83,0.00011573,2]
[352439134,1739107877506,-500.0,0.00011573,2]
[352439135,1739107877515,-652.14,0.00011573,2]
[352439136,1739107877525,-500.0,0.00011573,2]
[352439137,1739107877534,-500.0,0.00011573,2]
[352439138,1739107877544,-522.57,0.00011573,2]
[352439139,1739107877554,-500.0,0.00011573,2]
[352439140,1739107877563,-500.0,0.00011573,2]
[352439141,1739107877573,-500.0,0.00011573,2]
[352439142,1739107877583,-527.38,0.00011573,2]
[352439143,1739107877592,-500.0,0.00011573,2]
[352439144,1739107877601,-655.75,0.00011573,2]
[352439145,1739107877611,-787.42,0.00011573,2]
[352439146,1739107877620,-810.3,0.00011573,2]
[352439147,1739107877629,-500.0,0.00011573,2]
[352439148,1739107877639,-500.0,0.00011573,2]
[352439149,1739107877648,-500.0,0.00011573,2]
[352439150,1739107877657,-500.0,0.00011573,2]
[352439151,1739107877666,-500.0,0.00011573,2]
[352439152,1739107877676,-860.15,0.00011573,2]
[352439153,1739107877685,-556.55,0.00011573,2]
[352439154,1739107877694,-500.0,0.00011573,2]
[352439155,1739107877704,-597.29,0.00011573,2]
[352439156,1739107877713,-1061.93,0.00011573,2]
[352439157,1739107877727,-500.0,0.00011573,2]
[352439158,1739107877737,-500.0,0.00011573,2]
[352439159,1739107877746,-594.83,0.00011573,2]
[352439160,1739107877756,-500.0,0.00011573,2]
[352439161,1739107877765,-500.0,0.00011573,2]